Cogmind - Beta 12 @@@ ROGUE MODE // 2023.05.28 @ 11:03:38 Player: Mr Goldstein Result: Core destroyed Performance ------------- Evolutions (8) 4000 Regions Visited (31) 6200 Robots Destroyed (67) 335 Value Destroyed (2120) 2120 Prototype IDs (41) 820 Alien Tech Used (8) 1600 Bonus (6142) 6142 TOTAL SCORE: 21217 Bonus ------- Pacifist 200 High Alert Combat Kills 123 Follower Combat Kills 684 Entered Garrisons 400 Met Data Miner 300 Met Zhirov 300 Met Warlord at Base 500 MAIN.C Attacked Warlord 500 Met Warlord at Research 2000 Invited to Help at Command 2000 Scanned by Researcher 500 Pursued by Intercept 500 Friendly Fire -1865 Cogmind --------- Core Integrity 0/1450 Matter 272/300 Energy 99/100 System Corruption 2% Temperature Cool (0) Movement Core (50) Location -2/Section 7 Parts ------- > --- POWER (2) -------- (None) > --- PROPULSION (8) --- (None) > --- UTILITY (9) ------ Experimental Optical Array Core Analyzer Experimental Core Analyzer Advanced Hacking Suite Advanced Hacking Suite Spacefold Activator > --- WEAPON (4) ------- (None) > --- INVENTORY (5) ---- Improved Force Field Peak State ------------ > --- POWER ------------ Particle Reactor Micro Antimatter Reactor > --- PROPULSION ------- Xenon Bombardment Thruster Xenon Bombardment Thruster Nuclear Pulse Thruster Nuclear Pulse Thruster Nuclear Pulse Thruster Q-thruster Impulse Thruster Array > --- UTILITY ---------- Experimental Optical Array Experimental Melee Analysis Suite Core Analyzer Core Analyzer Experimental Core Analyzer Advanced Phase Shifter Centrium Light Armor Plating Advanced Hacking Suite Advanced Hacking Suite > --- WEAPON ----------- Particle Cleaver > --- INVENTORY -------- Micro Antimatter Reactor Improved Force Field Smartbomb Launcher [Rating: 138] Favorites ----------- Power Improved Deuterium Engine Engine Improved Deuterium Engine Power Core Micro Nuclear Core Reactor Heavy Antimatter Reactor Propulsion VTOL Module Hover Unit Aerolev Unit Flight Unit VTOL Module Utility Visual Processing Unit Device Encrypted Comm Array Storage Advanced Energy Well Processor Visual Processing Unit Hackware System Shield Protection Experimental Utility Shielding Artifact Spacefold Activator Weapon Heavy Mace Energy Cannon Nova Cannon Ballistic Gun Gauss Rifle Launcher Missile Launcher Impact Weapon Heavy Mace Slashing Weapon Phasing Sabre Build | -11 -10 -9 -8 -8 -8 -7 -7 -7 -7 -7 -7 -6 -6 -6 -6 -6 -6 -5 -5 -5 -5 -4 -4 -4 -4 -4 -3 -3 -2 -2 -2 ------- Run | Jun Mat Mat Mat Gar Mat Fac Gar Fac Low Low Dat Pro Fac Ext Cet Arc Hub Fac Upp Upp Zhi Pro Fac Upp Upp War Pro Res Res Tes Sec Slots Evolved 16 | . . 2 2 . . 2 . . . . . . 2 . . . . 2 . . . . 2 . . . . 2 2 . . Power 1 | . . . . . . . . . . . . . . . . . . 1 . . . . . . . . . . . . . Propulsion 6 | . . 1 1 . . 1 . . . . . . 1 . . . . . . . . . 1 . . . . . 1 . . Utility 7 | . . 1 1 . . 1 . . . . . . 1 . . . . 1 . . . . 1 . . . . . 1 . . Weapon 2 | . . . . . . . . . . . . . . . . . . . . . . . . . . . . 2 . . . Parts Attached 167 | . 1 4 4 2 13 7 10 17 1 2 . 6 . 8 . 4 1 8 1 3 10 4 15 2 . 4 3 7 24 1 5 Power 17 | . . . 1 . 3 . . 1 . . . . . 1 . . . . . . 3 1 . 1 . . . 1 4 . 1 Engine 2 | . . . . . . . . 1 . . . . . 1 . . . . . . . . . . . . . . . . . Core 7 | . . . 1 . 3 . . . . . . . . . . . . . . . 2 . . 1 . . . . . . . Reactor 8 | . . . . . . . . . . . . . . . . . . . . . 1 1 . . . . . 1 4 . 1 Propulsion 61 | . . 3 . 1 5 4 2 8 . 1 . 4 . 5 . . . 4 . 1 3 2 4 . . 1 1 2 7 1 2 Treads . | . . . . . . . . . . . . . . . . . . . . . . . . . . . . . . . . Leg . | . . . . . . . . . . . . . . . . . . . . . . . . . . . . . . . . Wheel . | . . . . . . . . . . . . . . . . . . . . . . . . . . . . . . . . Hover 7 | . . 3 . . 4 . . . . . . . . . . . . . . . . . . . . . . . . . . Flight 54 | . . . . 1 1 4 2 8 . 1 . 4 . 5 . . . 4 . 1 3 2 4 . . 1 1 2 7 1 2 Utility 50 | . 1 . 2 1 2 2 2 6 1 1 . 1 . . . 4 . 2 1 1 3 . 3 1 . 3 . 1 11 . 1 Device 10 | . . . . 1 2 1 . . 1 . . 1 . . . . . . . . . . . 1 . 1 . . 2 . . Storage 5 | . . . 1 . . . . . . . . . . . . . . . . . 2 . . . . 1 . 1 . . . Processor 11 | . 1 . 1 . . . . 2 . . . . . . . . . . . . . . . . . 1 . . 6 . . Hackware 11 | . . . . . . . . 1 . . . . . . . 3 . 1 1 . . . 3 . . . . . 2 . . Protection 12 | . . . . . . 1 2 3 . 1 . . . . . 1 . 1 . 1 1 . . . . . . . 1 . . Artifact 1 | . . . . . . . . . . . . . . . . . . . . . . . . . . . . . . . 1 Weapon 39 | . . 1 1 . 3 1 6 2 . . . 1 . 2 . . 1 2 . 1 1 1 8 . . . 2 3 2 . 1 Energy Gun . | . . . . . . . . . . . . . . . . . . . . . . . . . . . . . . . . Energy Cannon 2 | . . . . . . . . . . . . . . . . . . . . . . . 1 . . . . . . . 1 Ballistic Gun 3 | . . . . . . . . . . . . . . 1 . . . . . . . . . . . . . 1 1 . . Ballistic Cannon . | . . . . . . . . . . . . . . . . . . . . . . . . . . . . . . . . Launcher 18 | . . 1 . . 2 . 4 1 . . . . . . . . . 1 . 1 . 1 4 . . . 2 1 . . . Special Weapon . | . . . . . . . . . . . . . . . . . . . . . . . . . . . . . . . . Impact Weapon 7 | . . . 1 . 1 1 2 1 . . . 1 . . . . . . . . . . . . . . . . . . . Slashing Weapon 9 | . . . . . . . . . . . . . . 1 . . 1 1 . . 1 . 3 . . . . 1 1 . . Piercing Weapon . | . . . . . . . . . . . . . . . . . . . . . . . . . . . . . . . . Special Melee Weapon . | . . . . . . . . . . . . . . . . . . . . . . . . . . . . . . . . Unidentified Prototypes 27 | . . 1 . . 1 . . 1 . . . . . . . . . . . . 5 . 2 . . 3 . 1 7 . 6 Corrupted Parts 2 | . . . . . . . . . . . . 1 . 1 . . . . . . . . . . . . . . . . . System Corruption 14 | . . . . . . . . . . . . 7 . 7 . . . . . . . . . . . . . . . . . Parts Lost 78 | . . . 3 . 4 . 9 . . . . 3 . 10 . 2 1 7 . 3 . 1 1 . 4 . 4 9 . 1 16 Power 3 | . . . . . . . . . . . . . . . . . . . . . . . . . . . 1 . . . 2 Propulsion 51 | . . . 3 . 4 . 5 . . . . 3 . 8 . 2 . 2 . 2 . 1 1 . 4 . 2 4 . 1 9 Utility 19 | . . . . . . . 2 . . . . . . 1 . . 1 5 . 1 . . . . . . 1 5 . . 3 Weapon 5 | . . . . . . . 2 . . . . . . 1 . . . . . . . . . . . . . . . . 2 Highest Loss Streak 6 | . . . 3 . 2 . 6 . . . . 3 . 5 . 2 1 2 . 2 . 1 2 . 4 . 4 5 . 1 5 To Critical Strikes . | . . . . . . . . . . . . . . . . . . . . . . . . . . . . . . . . Average Slot Usage (%) 46 | . 11 41 46 29 48 74 45 77 92 92 92 91 80 47 33 45 30 16 20 21 43 59 71 89 82 69 66 29 21 80 52 Flight 15 | . . . . 2 4 30 14 31 38 38 38 38 33 21 13 11 . 1 11 8 18 30 33 36 27 16 18 6 7 28 20 Device 2 | . . . . . . 6 1 . 6 7 7 12 13 8 6 6 2 . . . . . . 2 5 5 5 1 . 4 . Processor 11 | . 11 11 14 18 18 15 15 23 16 15 15 9 6 6 6 6 6 5 5 5 5 5 5 5 5 5 5 3 10 21 14 Hackware 4 | . . . . . . . . 6 7 7 7 7 6 . . 13 20 6 2 5 5 5 12 21 21 21 19 11 . 8 8 Protection 2 | . . . . . . 3 2 1 7 7 7 7 6 1 . . . . . 1 3 5 5 5 5 5 5 . . 4 2 Impact Weapon 2 | . . . 2 9 7 2 5 7 7 7 7 6 6 3 . . . . . . . . . . . . . . . . . Naked Turns 52 | . 7 . . . . . . . . . . . . . . . . . . . . . . . . . . 31 14 . . Heaviest Build 38 | . . . 10 3 18 24 24 17 17 18 18 19 19 19 4 7 4 4 . 3 23 22 31 34 34 16 21 19 38 38 38 Greatest Support 56 | 3 3 24 24 3 36 24 24 17 17 19 19 20 20 21 8 8 3 8 8 8 22 30 34 34 34 26 23 19 54 54 56 Greatest Overweight (x) 3 | . . . 1 . 1 . . . . . . . . 3 . . 1 1 . . 1 . . . . . . . . . 1 Average Overweight (x) . | . . . . . . . . . . . . . . . . . . . . . . . . . . . . . . . . Largest Inventory Capacity 15 | 5 5 5 15 5 5 5 5 5 5 5 5 5 5 5 5 5 5 5 5 5 5 5 5 5 5 5 5 5 5 5 5 Average Capacity 5 | 5 5 5 5 5 5 5 5 5 5 5 5 5 5 5 5 5 5 5 5 5 5 5 5 5 5 5 5 5 5 5 5 Most Carried 5 | . 3 4 5 5 5 5 4 5 5 5 5 5 5 5 5 5 5 5 5 5 5 5 5 5 4 4 5 5 5 5 5 Average Carried 4 | . . 3 4 5 4 2 3 4 5 5 5 4 5 4 5 4 4 4 5 4 4 4 4 4 4 4 4 4 3 4 3 Final Capacity 5 | 5 5 5 5 5 5 5 5 5 5 5 5 5 5 5 5 5 5 5 5 5 5 5 5 5 5 5 5 5 5 5 5 Final Carried 5 | . 3 4 5 5 5 4 4 5 5 5 5 5 5 5 5 5 4 5 5 5 5 5 5 4 4 4 5 4 5 4 1 Class Distribution -------------------- 45% | Mutant 23% | Sprinter 12% | Hacker-Sprinter 9% | Scavenger-Sprinter 4% | Hacker-Mutant 4% | Scavenger-Mutant Dominant Class ---------------- Mutant | -10/Materials Mutant | -9/Materials Mutant | -8/Materials Mutant | -8/Garrison Mutant | -8/Materials Sprinter | -7/Factory Mutant | -7/Garrison Sprinter | -7/Factory Sprinter | -7/Lower Caves Sprinter | -7/Lower Caves Sprinter | -7/Data Miner Sprinter | -6/Proximity Caves Sprinter | -6/Factory Mutant | -6/Extension Sprinter | -6/Cetus Hacker-Sprinter | -6/Archives Hacker-Mutant | -6/Hub_04(d) Mutant | -5/Factory Sprinter | -5/Upper Caves Sprinter | -5/Upper Caves Mutant | -5/Zhirov Sprinter | -4/Proximity Caves Hacker-Sprinter | -4/Factory Hacker-Sprinter | -4/Upper Caves Hacker-Sprinter | -4/Upper Caves Hacker-Sprinter | -4/Warlord Hacker-Sprinter | -3/Proximity Caves Hacker-Mutant | -3/Research Mutant | -2/Research Scavenger-Sprinter | -2/Testing Scavenger-Sprinter | -2/Section 7 Resources | -11 -10 -9 -8 -8 -8 -7 -7 -7 -7 -7 -7 -6 -6 -6 -6 -6 -6 -5 -5 -5 -5 -4 -4 -4 -4 -4 -3 -3 -2 -2 -2 ----------- Run | Jun Mat Mat Mat Gar Mat Fac Gar Fac Low Low Dat Pro Fac Ext Cet Arc Hub Fac Upp Upp Zhi Pro Fac Upp Upp War Pro Res Res Tes Sec Matter Collected 2152 | 200 10 . . 41 116 . 165 323 40 20 . 50 . 79 . 27 . 32 20 45 157 70 185 3 . . . 83 446 . 40 Remotely 24 | . . . . . . . 24 . . . . . . . . . . . . . . . . . . . . . . . . Salvage Created 1986 | . . 33 . 41 134 . 175 279 . . . 92 . 216 . 73 . 42 . 43 293 47 352 . . . 42 124 . . . Parts 105 | . . 6 . 6 3 . 9 3 . . . 3 . 4 . 9 . 4 . 6 2 6 28 . . . 6 10 . . . Haulers Intercepted 6 | . . . . . 1 . . 3 . . . . . . . . . . . . . . 2 . . . . . . . . Recyclers Shooed . | . . . . . . . . . . . . . . . . . . . . . . . . . . . . . . . . Parts Field Recycled . | . . . . . . . . . . . . . . . . . . . . . . . . . . . . . . . . Retrieved Matter . | . . . . . . . . . . . . . . . . . . . . . . . . . . . . . . . . Parts Self-Destructed 13 | . . . . . . . . . . . . 4 . . . . . . . 3 2 2 . . . . 2 . . . . Prevented 1 | . . . . . . . . . . . . . . . . . . . . . . . . . . . 1 . . . . Kills | -11 -10 -9 -8 -8 -8 -7 -7 -7 -7 -7 -7 -6 -6 -6 -6 -6 -6 -5 -5 -5 -5 -4 -4 -4 -4 -4 -3 -3 -2 -2 -2 ------- Run | Jun Mat Mat Mat Gar Mat Fac Gar Fac Low Low Dat Pro Fac Ext Cet Arc Hub Fac Upp Upp Zhi Pro Fac Upp Upp War Pro Res Res Tes Sec Combat Hostiles Destroyed 44 | . . 1 . 2 1 . 7 . . . . . . 1 . . . 3 . 4 . 5 12 . . . 3 5 . . . Melee 4 | . . . . 1 . . 1 . . . . . . 1 . . . . . . . . . . . . . 1 . . . AOE 38 | . . 1 . . 1 . 5 . . . . . . . . . . 3 . 4 . 5 12 . . . 3 4 . . . Classes Destroyed 12 | . . 2 . 1 4 . 2 1 . . . . . 1 . . . . . . . . 1 . . . . . . . . Worker 5 | . . . . . 1 . . 3 . . . . . . . . . . . . . . . . . . . 1 . . . Builder 2 | . . 1 . . . . . . . . . . . 1 . . . . . . . . . . . . . . . . . Hauler 6 | . . . . . 1 . . 3 . . . . . . . . . . . . . . 2 . . . . . . . . Recycler 2 | . . . . . . . . 1 . . . . . 1 . . . . . . . . . . . . . . . . . Mechanic 1 | . . . . . . . . . . . . . . . . . . . . . . . 1 . . . . . . . . Operator 4 | . . . . . . . . . . . . . . 1 . 2 . . . . . . 1 . . . . . . . . Watcher 1 | . . . . . 1 . . . . . . . . . . . . . . . . . . . . . . . . . . Swarmer 37 | . . 1 . . . . 3 . . . . . . 1 . . . 3 . 4 . 5 12 . . . 3 5 . . . Cutter 2 | . . . . 2 . . . . . . . . . . . . . . . . . . . . . . . . . . . Grunt 3 | . . . . . 1 . 2 . . . . . . . . . . . . . . . . . . . . . . . . Sentry 1 | . . . . . . . 1 . . . . . . . . . . . . . . . . . . . . . . . . Hunter 1 | . . . . . . . 1 . . . . . . . . . . . . . . . . . . . . . . . . Enhanced Grunt 1 | . . . . . . . . . . . . 1 . . . . . . . . . . . . . . . . . . . Best Kill Streak 6 | . . 2 . 2 2 . 3 2 . . . . . 2 . 1 . 3 . 4 . 5 6 . . . 3 5 . . . Combat Bots Only 5 | . . 1 . 2 1 . 3 . . . . . . 1 . . . 3 . 4 . 5 4 . . . 3 4 . . . Max Kills in Single Turn 4 | . . 1 . 1 1 . 2 1 . . . 1 . 1 . 1 . 3 . 3 . 4 4 . . . 2 4 . . . Gunslinging . | . . . . . . . . . . . . . . . . . . . . . . . . . . . . . . . . Exploded 4 | . . 1 . . 1 . 2 . . . . . . . . . . 3 . 3 . 4 4 . . . 2 3 . . . Melee 1 | . . . . 1 . . 1 . . . . . . 1 . . . . . . . . . . . . . 1 . . . Uniques/NPCs Destroyed 1 | . . . . . . . . . . . . . . 1 . . . . . . . . . . . . . . . . . A7 (-6/Extension) Combat | -11 -10 -9 -8 -8 -8 -7 -7 -7 -7 -7 -7 -6 -6 -6 -6 -6 -6 -5 -5 -5 -5 -4 -4 -4 -4 -4 -3 -3 -2 -2 -2 -------- Run | Jun Mat Mat Mat Gar Mat Fac Gar Fac Low Low Dat Pro Fac Ext Cet Arc Hub Fac Upp Upp Zhi Pro Fac Upp Upp War Pro Res Res Tes Sec Damage Taken 10709 | . 76 195 203 153 645 119 671 194 28 . . 217 57 786 55 507 56 638 . 221 . 144 195 94 236 . 245 1684 81 125 3084 Core 5134 | . 76 46 31 101 294 27 261 28 28 . . 18 12 249 55 459 38 300 . 126 . 25 13 22 14 . 43 1271 61 . 1536 Absorbed by Shields 184 | . . . . . . . 48 . . . . . . 129 . . . . . . . . . . . . . . . 7 . Redirected to Shielding 155 | . . . . . . . . . . . . . . . . . . . . . . 38 . 19 36 . 45 17 . . . Regen/Repaired (Parts) 174 | . . . . . . . . . . . . . . . . . . . . . . . . . . . . . . . 174 Core Remaining (%) 53 | 100 69 88 . . 22 . . . . . . 48 . . . . 4 . . . . 54 . . . . 92 . . . . Volleys Fired 34 | . . 2 . . 2 . 7 . . . . . . . . . . 1 . 2 . 2 4 . . . 7 6 . . 1 Largest 2 | . . 1 . . 2 . 2 . . . . . . . . . . 1 . 1 . 1 1 . . . 1 1 . . 1 Hottest 113 | . . 33 . . 72 . 72 . . . . . . . . . . 46 . 46 . 46 46 . . . 46 46 . . 113 Shots Fired 40 | . . 2 . . 4 . 11 . . . . . . . . . . 1 . 2 . 2 4 . . . 7 6 . . 1 Gun 4 | . . . . . . . . . . . . . . . . . . . . . . . . . . . . 4 . . . Cannon 1 | . . . . . . . . . . . . . . . . . . . . . . . . . . . . . . . 1 Launcher 35 | . . 2 . . 4 . 11 . . . . . . . . . . 1 . 2 . 2 4 . . . 7 2 . . . Special . | . . . . . . . . . . . . . . . . . . . . . . . . . . . . . . . . Kinetic 4 | . . . . . . . . . . . . . . . . . . . . . . . . . . . . 4 . . . Thermal 1 | . . . . . . . . . . . . . . . . . . . . . . . . . . . . . . . 1 Explosive 33 | . . . . . 4 . 11 . . . . . . . . . . 1 . 2 . 2 4 . . . 7 2 . . . Electromagnetic 2 | . . 2 . . . . . . . . . . . . . . . . . . . . . . . . . . . . . Robot Hit Streak 11 | . . . . . 1 . 5 . . . . . . . . . . . . . . . 7 . . . 10 11 . . . Robot Miss Streak 1 | . . . . . 1 . 1 . . . . . . . . . . . . . . . . . . . . 1 . . . Penetration Max . | . . . . . . . . . . . . . . . . . . . . . . . . . . . . . . . . Secondary Targets . | . . . . . . . . . . . . . . . . . . . . . . . . . . . . . . . . Shots Hit Robots 76 | . . . . 3 5 . 18 8 . . . 2 . 16 . 4 . . . . 9 . 6 . . . 3 2 . . . Core Hits 78 | . . 3 . 1 5 . 10 1 . . . . . 3 . 2 . 5 . 7 2 4 20 . . . 4 11 . . . Critical Kills 1 | . . . . . . . . 1 . . . . . . . . . . . . . . . . . . . . . . . Critical Parts Destroyed 5 | . . . . 1 1 . 1 . . . . 1 . 1 . . . . . . . . . . . . . . . . . Critical Strikes 6 | . . . . 1 1 . 1 1 . . . 1 . 1 . . . . . . . . . . . . . . . . . Smash 6 | . . . . 1 1 . 1 1 . . . 1 . 1 . . . . . . . . . . . . . . . . . Melee Attacks 185 | . . . . 13 8 3 62 14 . . . 5 4 17 . 8 2 1 . . 9 . 30 . 2 4 . 2 . . 1 Impact 122 | . . . . 13 8 3 62 14 . . . 5 4 13 . . . . . . . . . . . . . . . . . Slashing 63 | . . . . . . . . . . . . . . 4 . 8 2 1 . . 9 . 30 . 2 4 . 2 . . 1 Piercing . | . . . . . . . . . . . . . . . . . . . . . . . . . . . . . . . . Sneak Attacks 21 | . . . . . 2 . . 6 . . . 2 . 6 . 3 . . . . . . 2 . . . . . . . . Combat Hostiles . | . . . . . . . . . . . . . . . . . . . . . . . . . . . . . . . . Follow-up Attacks . | . . . . . . . . . . . . . . . . . . . . . . . . . . . . . . . . Damage Inflicted 8536 | . . 120 . 142 456 . 1017 697 . . . 242 . 837 . 336 . 365 . 392 896 479 1408 . . . 454 695 . . . Guns 54 | . . . . . . . . . . . . . . . . . . . . . . . . . . . . 54 . . . Cannons . | . . . . . . . . . . . . . . . . . . . . . . . . . . . . . . . . Explosions 4453 | . . 120 . . 260 . 706 . . . . . . . . . . 365 . 392 . 479 1067 . . . 454 610 . . . Melee 3991 | . . . . 142 189 . 311 697 . . . 242 . 837 . 336 . . . . 896 . 341 . . . . . . . . Ramming 38 | . . . . . 7 . . . . . . . . . . . . . . . . . . . . . . 31 . . . Kinetic 54 | . . . . . . . . . . . . . . . . . . . . . . . . . . . . 54 . . . Thermal . | . . . . . . . . . . . . . . . . . . . . . . . . . . . . . . . . Explosive 4277 | . . . . . 260 . 706 . . . . . . . . . . 365 . 392 . 479 1011 . . . 454 610 . . . Electromagnetic 176 | . . 120 . . . . . . . . . . . . . . . . . . . . 56 . . . . . . . . Impact 2191 | . . . . 142 189 . 311 697 . . . 242 . 610 . . . . . . . . . . . . . . . . . Slashing 1800 | . . . . . . . . . . . . . . 227 . 336 . . . . 896 . 341 . . . . . . . . Piercing . | . . . . . . . . . . . . . . . . . . . . . . . . . . . . . . . . Highest Corruption 7 | . . . . . 1 . . . . . . 7 . 7 7 7 7 3 3 3 3 3 3 3 3 3 . . . . 2 Average Corruption 4 | . . . . . 1 . . . . . . 7 . 7 7 7 7 2 3 3 3 3 3 3 3 3 . . . . 1 Corruption Purged . | . . . . . . . . . . . . . . . . . . . . . . . . . . . . . . . . Corruption Blocked 16 | . . . . . . . . . . . . . . . . . . . . . . . . . . . . . 4 . 12 Effects 38 | . . . . . 1 . . . . . . 1 . 5 1 4 2 5 3 2 4 1 3 1 1 . . . . . 4 Message Errors 10 | . . . . . 1 . . . . . . . . 2 . 1 . 1 1 1 2 . . . . . . . . . 1 Matter Fused 10 | . . . . . . . . . . . . . . 2 . 1 . 3 1 . . 1 . . 1 . . . . . 1 Heat Flow Errors 8 | . . . . . . . . . . . . . . . . 1 1 1 . 1 1 . 2 1 . . . . . . . Energy Discharges 4 | . . . . . . . . . . . . 1 . . . 1 1 . . . . . 1 . . . . . . . . Data Loss (minor) 5 | . . . . . . . . . . . . . . 1 1 . . . . . 1 . . . . . . . . . 2 Data Loss (major) 1 | . . . . . . . . . . . . . . . . . . . 1 . . . . . . . . . . . . Overload Shots . | . . . . . . . . . . . . . . . . . . . . . . . . . . . . . . . . Overflow Damage 1624 | . . . . 35 126 . 113 382 . . . 192 . 160 . 100 . 56 . . 221 27 112 . . . 25 75 . . . Projectiles . | . . . . . . . . . . . . . . . . . . . . . . . . . . . . . . . . Explosions 317 | . . . . . 7 . 65 . . . . . . . . . . 56 . . . 27 62 . . . 25 75 . . . Melee 1307 | . . . . 35 119 . 48 382 . . . 192 . 160 . 100 . . . . 221 . 50 . . . . . . . . Knockbacks 4 | . . . . . . . . 1 . . . 2 . 1 . . . . . . . . . . . . . . . . . Impact 4 | . . . . . . . . 1 . . . 2 . 1 . . . . . . . . . . . . . . . . . Kinetic . | . . . . . . . . . . . . . . . . . . . . . . . . . . . . . . . . Secondary . | . . . . . . . . . . . . . . . . . . . . . . . . . . . . . . . . Self-Inflicted Damage 164 | . . . . . 3 . 102 . . . . . . . . . . . . 9 . . 6 . . . . 44 . . . Shots 5 | . . . . . . . 2 . . . . . . . . . . . . 1 . . 1 . . . . 1 . . . Rammed 10 | . . . . . 5 . . . . . . . . . . . . . . . . . . . . . . 5 . . . Targets Rammed 10 | . . . . . 5 . . . . . . . . . . . . . . . . . . . . . . 5 . . . Kicked . | . . . . . . . . . . . . . . . . . . . . . . . . . . . . . . . . Crushed . | . . . . . . . . . . . . . . . . . . . . . . . . . . . . . . . . Highest Temperature 221 | . . . . . 26 18 102 43 125 41 87 16 . . . 135 221 221 . 184 191 . 216 . . . . . 4 8 16 Average Temperature 29 | . . . . . 8 7 30 8 59 14 43 8 . . . 98 122 122 . 94 100 . 102 . . . . . 2 2 3 Received Heat Transfer 1491 | . 42 30 81 36 324 36 147 30 . . . 12 . 174 9 81 27 54 . 18 . 9 12 . 9 . 30 117 . 24 189 Siege Activations . | . . . . . . . . . . . . . . . . . . . . . . . . . . . . . . . . Robots Corrupted . | . . . . . . . . . . . . . . . . . . . . . . . . . . . . . . . . Combat Hostiles . | . . . . . . . . . . . . . . . . . . . . . . . . . . . . . . . . Parts Fried 18 | . . . . . 4 . 3 6 . . . 1 . 4 . . . . . . . . . . . . . . . . . Impact Corruptions 24 | . . . . 1 3 . 2 9 . . . 2 . 7 . . . . . . . . . . . . . . . . . Robots Melted . | . . . . . . . . . . . . . . . . . . . . . . . . . . . . . . . . Combat Hostiles . | . . . . . . . . . . . . . . . . . . . . . . . . . . . . . . . . Parts Melted . | . . . . . . . . . . . . . . . . . . . . . . . . . . . . . . . . Heat Transferred . | . . . . . . . . . . . . . . . . . . . . . . . . . . . . . . . . Parts Sabotaged . | . . . . . . . . . . . . . . . . . . . . . . . . . . . . . . . . Parts Stolen . | . . . . . . . . . . . . . . . . . . . . . . . . . . . . . . . . Parts Stripped . | . . . . . . . . . . . . . . . . . . . . . . . . . . . . . . . . Power Chain Reactions 1 | . . . . . . . . . . . . . . . . . . . . . . . 1 . . . . . . . . Missiles Intercepted . | . . . . . . . . . . . . . . . . . . . . . . . . . . . . . . . . Alert | -11 -10 -9 -8 -8 -8 -7 -7 -7 -7 -7 -7 -6 -6 -6 -6 -6 -6 -5 -5 -5 -5 -4 -4 -4 -4 -4 -3 -3 -2 -2 -2 ------- Run | Jun Mat Mat Mat Gar Mat Fac Gar Fac Low Low Dat Pro Fac Ext Cet Arc Hub Fac Upp Upp Zhi Pro Fac Upp Upp War Pro Res Res Tes Sec Peak Influence 925 | . 15 105 59 120 261 241 925 821 . . . . 110 602 311 181 168 292 . . . . 707 . . . . 812 486 79 872 Initial 485 | . . 5 44 23 58 114 168 485 . . . . 35 53 311 116 63 89 . . . . 63 . . . . 101 456 38 44 Average 391 | . 1 33 46 58 139 173 699 611 . . . . 65 357 301 139 94 121 . . . . 498 . . . . 379 286 54 494 Maximum Alert Level 3 | . . . . . 1 1 3 3 . . . . . 2 1 . . 1 . . . . 3 . . . . 3 2 . 3 Low Security (%) 36 | 100 100 100 100 100 85 80 1 . . . . . 100 29 . 100 100 93 . . . . 13 . . . . 34 37 100 13 Level 1 16 | . . . . . 14 19 10 . . . . . . 17 100 . . 6 . . . . 17 . . . . 24 31 . 18 Level 2 26 | . . . . . . . 19 68 . . . . . 53 . . . . . . . . 24 . . . . 20 31 . 51 Level 3 20 | . . . . . . . 68 31 . . . . . . . . . . . . . . 43 . . . . 20 . . 16 Level 4 . | . . . . . . . . . . . . . . . . . . . . . . . . . . . . . . . . Level 5 . | . . . . . . . . . . . . . . . . . . . . . . . . . . . . . . . . High Security . | . . . . . . . . . . . . . . . . . . . . . . . . . . . . . . . . Max Security . | . . . . . . . . . . . . . . . . . . . . . . . . . . . . . . . . Squads Dispatched 29 | . 1 . . . 1 2 . 1 . . . . . 3 . . 2 . . . . . 1 . . . . 6 . 1 11 Investigation 11 | . . . . . 1 2 . 1 . . . . . 2 . . . . . . . . . . . . . 5 . . . Extermination . | . . . . . . . . . . . . . . . . . . . . . . . . . . . . . . . . Reinforcement 12 | . 1 . . . . . . . . . . . . . . . 2 . . . . . 1 . . . . 1 . 1 6 Assault 1 | . . . . . . . . . . . . . . 1 . . . . . . . . . . . . . . . . . Garrison . | . . . . . . . . . . . . . . . . . . . . . . . . . . . . . . . . Intercept 5 | . . . . . . . . . . . . . . . . . . . . . . . . . . . . . . . 5 Searches Triggered 2 | . . . . . . . . . . . . . . . . . . . . . . . . . . . . . . . 2 Data Miner Redirects 2 | . . . . . . . . . . . . . . . . . . . . . . . . . . . . 2 . . . Construction Impeded . | . . . . . . . . . . . . . . . . . . . . . . . . . . . . . . . . Haulers Reinforced . | . . . . . . . . . . . . . . . . . . . . . . . . . . . . . . . . Active Scanning Responses . | . . . . . . . . . . . . . . . . . . . . . . . . . . . . . . . . Cargo Convoy Interrupts . | . . . . . . . . . . . . . . . . . . . . . . . . . . . . . . . . Stealth | -11 -10 -9 -8 -8 -8 -7 -7 -7 -7 -7 -7 -6 -6 -6 -6 -6 -6 -5 -5 -5 -5 -4 -4 -4 -4 -4 -3 -3 -2 -2 -2 --------- Run | Jun Mat Mat Mat Gar Mat Fac Gar Fac Low Low Dat Pro Fac Ext Cet Arc Hub Fac Upp Upp Zhi Pro Fac Upp Upp War Pro Res Res Tes Sec Distress Signals 17 | . . . 1 . . . . . . . . . . . 1 . 1 . . . . . . . . . . . 9 1 4 Communications Jammed . | . . . . . . . . . . . . . . . . . . . . . . . . . . . . . . . . Distress Signals . | . . . . . . . . . . . . . . . . . . . . . . . . . . . . . . . . Times Spotted 400 | . 6 13 5 7 14 6 15 19 1 . . 4 6 32 5 6 12 11 1 11 . 9 20 8 7 . 18 56 8 8 92 Peak Tracking Total 24 | . 4 10 5 6 6 5 6 8 1 . . 3 6 11 5 4 8 7 1 8 . 5 10 7 6 . 16 24 3 7 17 Tactical Retreats 61 | . 1 1 . 1 2 2 6 3 1 . . . 1 3 . . 1 2 . 3 . . 2 3 2 . 2 5 3 1 16 Traps | -11 -10 -9 -8 -8 -8 -7 -7 -7 -7 -7 -7 -6 -6 -6 -6 -6 -6 -5 -5 -5 -5 -4 -4 -4 -4 -4 -3 -3 -2 -2 -2 ------- Run | Jun Mat Mat Mat Gar Mat Fac Gar Fac Low Low Dat Pro Fac Ext Cet Arc Hub Fac Upp Upp Zhi Pro Fac Upp Upp War Pro Res Res Tes Sec Traps Triggered 22 | . . . . 1 1 . 4 3 . . . . . 4 . . . 2 . . . . 1 . . . . 3 . 2 1 Indirectly . | . . . . . . . . . . . . . . . . . . . . . . . . . . . . . . . . Trap Hack Attempts . | . . . . . . . . . . . . . . . . . . . . . . . . . . . . . . . . Triggered . | . . . . . . . . . . . . . . . . . . . . . . . . . . . . . . . . Disarmed . | . . . . . . . . . . . . . . . . . . . . . . . . . . . . . . . . Reprogrammed . | . . . . . . . . . . . . . . . . . . . . . . . . . . . . . . . . Reused . | . . . . . . . . . . . . . . . . . . . . . . . . . . . . . . . . Traps Extracted . | . . . . . . . . . . . . . . . . . . . . . . . . . . . . . . . . Installed . | . . . . . . . . . . . . . . . . . . . . . . . . . . . . . . . . Triggered 4 | . . . . . . . . . . . . . . . . . . . 2 . . . . . . 1 1 . . . . Machines | -11 -10 -9 -8 -8 -8 -7 -7 -7 -7 -7 -7 -6 -6 -6 -6 -6 -6 -5 -5 -5 -5 -4 -4 -4 -4 -4 -3 -3 -2 -2 -2 ---------- Run | Jun Mat Mat Mat Gar Mat Fac Gar Fac Low Low Dat Pro Fac Ext Cet Arc Hub Fac Upp Upp Zhi Pro Fac Upp Upp War Pro Res Res Tes Sec Machines Disabled 14 | . . . . . 1 . 4 . . . . . . 3 . 1 . . . . . . 2 . . . . 1 . . 2 Max in Single Turn 2 | . . . . . 1 . 1 . . . . . . . . 1 . . . . . . 2 . . . . 1 . . 1 Garrison Access 4 | . . . . . . 1 . 1 . . . . . . . . . . . . . . . . . . . . 1 . 1 Garrison Relay 2 | . . . . . . . 2 . . . . . . . . . . . . . . . . . . . . . . . . Machines Repaired . | . . . . . . . . . . . . . . . . . . . . . . . . . . . . . . . . Machines Sabotaged . | . . . . . . . . . . . . . . . . . . . . . . . . . . . . . . . . Overloaded Fab Kills 1 | . . . . . . . . . . . . . . . . . . . . . . . . . . . . 1 . . . Hacking | -11 -10 -9 -8 -8 -8 -7 -7 -7 -7 -7 -7 -6 -6 -6 -6 -6 -6 -5 -5 -5 -5 -4 -4 -4 -4 -4 -3 -3 -2 -2 -2 --------- Run | Jun Mat Mat Mat Gar Mat Fac Gar Fac Low Low Dat Pro Fac Ext Cet Arc Hub Fac Upp Upp Zhi Pro Fac Upp Upp War Pro Res Res Tes Sec Machines Accessed 51 | . . . 2 . 1 5 3 3 1 1 4 1 . 2 . . 1 3 1 1 2 . 3 1 . 1 . 4 . 2 9 Terminals 33 | . . . 1 . 1 3 3 2 . . . 1 . 2 . . 1 2 . 1 . . 3 . . . . 3 . 2 8 Fabricators 2 | . . . . . . . . . . . . . . . . . . 1 . . . . . . . . . 1 . . . Repair Stations . | . . . . . . . . . . . . . . . . . . . . . . . . . . . . . . . . Recycling Units . | . . . . . . . . . . . . . . . . . . . . . . . . . . . . . . . . Scanalyzers . | . . . . . . . . . . . . . . . . . . . . . . . . . . . . . . . . Garrison Access 5 | . . . 1 . . 2 . 1 . . . . . . . . . . . . . . . . . . . . . . 1 Total Hacks 131 | . . . 5 . 3 11 7 5 1 1 27 1 . 8 . . 1 8 1 1 9 . 10 1 . 6 . 10 . 4 11 Successful 69 | . . . 2 . 1 2 1 2 1 1 27 1 . . . . 1 2 1 1 9 . . 1 . 6 . 1 . 2 7 Failed 62 | . . . 3 . 2 9 6 3 . . . . . 8 . . . 6 . . . . 10 . . . . 9 . 2 4 Catastrophic 21 | . . . 2 . 1 3 2 2 . . . . . 2 . . . 1 . . . . 3 . . . . 4 . . 1 Database Lockouts . | . . . . . . . . . . . . . . . . . . . . . . . . . . . . . . . . Manual 42 | . . . 1 . 3 6 . 2 . . . . . 6 . . 1 3 . . . . 7 . . 1 . 6 . 3 3 Terminals 73 | . . . 3 . 3 9 7 4 . . . 1 . 8 . . 1 4 . 1 . . 10 . . . . 8 . 4 10 Fabricators 6 | . . . . . . . . . . . . . . . . . . 4 . . . . . . . . . 2 . . . Repair Stations . | . . . . . . . . . . . . . . . . . . . . . . . . . . . . . . . . Recycling Units . | . . . . . . . . . . . . . . . . . . . . . . . . . . . . . . . . Scanalyzers . | . . . . . . . . . . . . . . . . . . . . . . . . . . . . . . . . Garrison Access 6 | . . . 2 . . 2 . 1 . . . . . . . . . . . . . . . . . . . . . . 1 Terminal Hacks 62 | . . . 1 . . . 1 1 1 1 27 1 . . . . 1 2 1 1 9 . . 1 . 6 . . . 2 6 Record 15 | . . . . . . . . . . . 7 1 . . . . . . . 1 5 . . . . . . . . . 1 Part Schematic 12 | . . . . . . . . . . . 12 . . . . . . . . . . . . . . . . . . . . Robot Schematic 5 | . . . . . . . . . . . 5 . . . . . . . . . . . . . . . . . . . . Robot Analysis 4 | . . . . . . . . . . . . . . . . . . . . . 4 . . . . . . . . . . Prototype ID Bank 9 | . . . . . . . . . . . 3 . . . . . . . . . . . . . . 6 . . . . . Open Door 8 | . . . . . . . . . 1 1 . . . . . . . . 1 . . . . 1 . . . . . 1 3 Level Access Points 3 | . . . . . . . . . . . . . . . . . 1 . . . . . . . . . . . . 1 1 Branch Access Points 2 | . . . . . . . . 1 . . . . . . . . . 1 . . . . . . . . . . . . . Emergency Access Points 1 | . . . . . . . 1 . . . . . . . . . . . . . . . . . . . . . . . . Hauler Manifests 1 | . . . . . . . . . . . . . . . . . . 1 . . . . . . . . . . . . . Registered Components 2 | . . . 1 . . . . . . . . . . . . . . . . . . . . . . . . . . . 1 Fabricator Hacks . | . . . . . . . . . . . . . . . . . . . . . . . . . . . . . . . . Repair Station Hacks . | . . . . . . . . . . . . . . . . . . . . . . . . . . . . . . . . Recycling Unit Hacks . | . . . . . . . . . . . . . . . . . . . . . . . . . . . . . . . . Scanalyzer . | . . . . . . . . . . . . . . . . . . . . . . . . . . . . . . . . Garrison Access Hacks 5 | . . . 1 . . 2 . 1 . . . . . . . . . . . . . . . . . . . . . . 1 Unlock Access 2 | . . . 1 . . 1 . . . . . . . . . . . . . . . . . . . . . . . . . Seal Access 3 | . . . . . . 1 . 1 . . . . . . . . . . . . . . . . . . . . . . 1 Unauthorized Hacks 2 | . . . . . 1 . . . . . . . . . . . . . . . . . . . . . . 1 . . . Terminals 1 | . . . . . 1 . . . . . . . . . . . . . . . . . . . . . . . . . . Botnet 1 | . . . . . 1 . . . . . . . . . . . . . . . . . . . . . . . . . . Fabricators 1 | . . . . . . . . . . . . . . . . . . . . . . . . . . . . 1 . . . Overload 1 | . . . . . . . . . . . . . . . . . . . . . . . . . . . . 1 . . . Repair Stations . | . . . . . . . . . . . . . . . . . . . . . . . . . . . . . . . . Recycling Units . | . . . . . . . . . . . . . . . . . . . . . . . . . . . . . . . . Scanalyzers . | . . . . . . . . . . . . . . . . . . . . . . . . . . . . . . . . Garrison Access . | . . . . . . . . . . . . . . . . . . . . . . . . . . . . . . . . Data Cores Recovered 1 | . . . . . . . . . . . . . . . . . . . . . . . 1 . . . . . . . . Used 1 | . . . . . . . . . . . . . . . . . . . . . . . 1 . . . . . . . . Hacking Detections 27 | . . . 2 . 1 3 3 1 . . . . . 2 . . . 2 . . . . 3 . . . . 4 . . 6 Full Trace Events 12 | . . . 1 . . 2 3 1 . . . . . 2 . . . . . . . . . . . . . 3 . . . Feedback Events . | . . . . . . . . . . . . . . . . . . . . . . . . . . . . . . . . Feedback Blocked 1 | . . . . . . . . . . . . . . . . . . . . . . . . . . . . 1 . . . Robot Schematics Acquired 5 | . . . . . . . . . . . 5 . . . . . . . . . . . . . . . . . . . . Robots Built . | . . . . . . . . . . . . . . . . . . . . . . . . . . . . . . . . Authchips . | . . . . . . . . . . . . . . . . . . . . . . . . . . . . . . . . Time . | . . . . . . . . . . . . . . . . . . . . . . . . . . . . . . . . Total Robot Build Rating . | . . . . . . . . . . . . . . . . . . . . . . . . . . . . . . . . Part Schematics Acquired 12 | . . . . . . . . . . . 12 . . . . . . . . . . . . . . . . . . . . Parts Built . | . . . . . . . . . . . . . . . . . . . . . . . . . . . . . . . . Authchips . | . . . . . . . . . . . . . . . . . . . . . . . . . . . . . . . . Time . | . . . . . . . . . . . . . . . . . . . . . . . . . . . . . . . . Total Part Build Rating . | . . . . . . . . . . . . . . . . . . . . . . . . . . . . . . . . Parts Repaired . | . . . . . . . . . . . . . . . . . . . . . . . . . . . . . . . . Time . | . . . . . . . . . . . . . . . . . . . . . . . . . . . . . . . . Parts Recycled . | . . . . . . . . . . . . . . . . . . . . . . . . . . . . . . . . Recycled Matter . | . . . . . . . . . . . . . . . . . . . . . . . . . . . . . . . . Retrieved Matter . | . . . . . . . . . . . . . . . . . . . . . . . . . . . . . . . . Retrieved Components . | . . . . . . . . . . . . . . . . . . . . . . . . . . . . . . . . Parts Scanalyzed . | . . . . . . . . . . . . . . . . . . . . . . . . . . . . . . . . Part Schematics Acquired . | . . . . . . . . . . . . . . . . . . . . . . . . . . . . . . . . Parts Damaged . | . . . . . . . . . . . . . . . . . . . . . . . . . . . . . . . . Bothacking | -11 -10 -9 -8 -8 -8 -7 -7 -7 -7 -7 -7 -6 -6 -6 -6 -6 -6 -5 -5 -5 -5 -4 -4 -4 -4 -4 -3 -3 -2 -2 -2 ------------ Run | Jun Mat Mat Mat Gar Mat Fac Gar Fac Low Low Dat Pro Fac Ext Cet Arc Hub Fac Upp Upp Zhi Pro Fac Upp Upp War Pro Res Res Tes Sec Used RIF Installer . | . . . . . . . . . . . . . . . . . . . . . . . . . . . . . . . . Robots Hacked . | . . . . . . . . . . . . . . . . . . . . . . . . . . . . . . . . Non-combat . | . . . . . . . . . . . . . . . . . . . . . . . . . . . . . . . . Combat . | . . . . . . . . . . . . . . . . . . . . . . . . . . . . . . . . Robot Hacks Applied . | . . . . . . . . . . . . . . . . . . . . . . . . . . . . . . . . Relay Couplers Released 8 | . . . . . . . 8 . . . . . . . . . . . . . . . . . . . . . . . . Machine Destruction 8 | . . . . . . . 8 . . . . . . . . . . . . . . . . . . . . . . . . Fabnet Peak Effective % . | . . . . . . . . . . . . . . . . . . . . . . . . . . . . . . . . Robots Rewired 8 | . . . . . . . . . . . . . . 3 . . . . . . . . . . . 5 . . . . . Allies Hacked . | . . . . . . . . . . . . . . . . . . . . . . . . . . . . . . . . Hacks Repelled . | . . . . . . . . . . . . . . . . . . . . . . . . . . . . . . . . Allies | -11 -10 -9 -8 -8 -8 -7 -7 -7 -7 -7 -7 -6 -6 -6 -6 -6 -6 -5 -5 -5 -5 -4 -4 -4 -4 -4 -3 -3 -2 -2 -2 -------- Run | Jun Mat Mat Mat Gar Mat Fac Gar Fac Low Low Dat Pro Fac Ext Cet Arc Hub Fac Upp Upp Zhi Pro Fac Upp Upp War Pro Res Res Tes Sec Total Allies 16 | . . . . . . . . . . . . 1 . 10 . . . . . . . . . . . 5 . . . . . Largest Group 7 | . . . . . . . . . . . . 1 . 7 1 . . . . . . . . . . 5 . . . . . Highest-Rated Group 325 | . . . . . . . . . . . . 96 . 325 20 . . . . . . . . . . 269 . . . . . Highest-Rated Ally 159 | . . . . . . . . . . . . 96 . 159 20 . . . . . . . . . . 65 . . . . . Warlord Squad Rendezvous 1 | . . . . . . . . . . . . . 1 . . . . . . . . . . . . . . . . . . Muscle 1 | . . . . . . . . . . . . . 1 . . . . . . . . . . . . . . . . . . Total Orders . | . . . . . . . . . . . . . . . . . . . . . . . . . . . . . . . . Ally Attacks 86 | . . . . . . . . . . . . 10 . 76 . . . . . . . . . . . . . . . . . Total Damage 2512 | . . . . . . . . . . . . 397 . 2115 . . . . . . . . . . . . . . . . . Kills 23 | . . . . . . . . . . . . 3 . 20 . . . . . . . . . . . . . . . . . Allies Corrupted 1 | . . . . . . . . . . . . 1 . . . . . . . . . . . . . . . . . . . Allies Melted 1 | . . . . . . . . . . . . . . 1 . . . . . . . . . . . . . . . . . Intel | -11 -10 -9 -8 -8 -8 -7 -7 -7 -7 -7 -7 -6 -6 -6 -6 -6 -6 -5 -5 -5 -5 -4 -4 -4 -4 -4 -3 -3 -2 -2 -2 ------- Run | Jun Mat Mat Mat Gar Mat Fac Gar Fac Low Low Dat Pro Fac Ext Cet Arc Hub Fac Upp Upp Zhi Pro Fac Upp Upp War Pro Res Res Tes Sec Robot Analysis Total 4 | . . . . . . . . . . . . . . . . . . . . . 4 . . . . . . . . . . Derelict Logs Recovered 13 | . . . . . . . . . 2 . . 2 . . . . . . 2 2 . 1 . 2 2 . . . . . . Drone Launches . | . . . . . . . . . . . . . . . . . . . . . . . . . . . . . . . . Drone Recoveries . | . . . . . . . . . . . . . . . . . . . . . . . . . . . . . . . . Exploration | -11 -10 -9 -8 -8 -8 -7 -7 -7 -7 -7 -7 -6 -6 -6 -6 -6 -6 -5 -5 -5 -5 -4 -4 -4 -4 -4 -3 -3 -2 -2 -2 ------------- Run | Jun Mat Mat Mat Gar Mat Fac Gar Fac Low Low Dat Pro Fac Ext Cet Arc Hub Fac Upp Upp Zhi Pro Fac Upp Upp War Pro Res Res Tes Sec Turns Passed 6686 | 12 52 75 89 120 221 111 1213 369 82 102 19 109 74 376 33 202 53 231 76 101 144 52 201 61 69 148 150 206 1288 71 576 Spaces Moved 10783 | 23 95 104 157 153 360 295 743 878 348 242 78 308 246 498 81 71 91 451 231 275 167 197 488 340 306 346 478 469 673 257 1334 Core 1032 | 23 95 80 67 78 . . . . . . . . . 58 . 20 91 284 . . . . . . . . . 123 96 . 17 Treads . | . . . . . . . . . . . . . . . . . . . . . . . . . . . . . . . . Legs . | . . . . . . . . . . . . . . . . . . . . . . . . . . . . . . . . Wheels . | . . . . . . . . . . . . . . . . . . . . . . . . . . . . . . . . Hover 283 | . . 24 90 . 169 . . . . . . . . . . . . . . . . . . . . . . . . . . Flight 9414 | . . . . 75 191 295 743 878 348 242 78 308 246 440 81 51 . 167 231 275 167 197 488 340 306 346 478 346 577 257 1263 Fastest Speed 17 | 50 50 42 42 35 34 31 31 23 23 23 24 24 24 24 32 32 50 32 32 32 26 20 17 17 17 23 26 30 22 22 22 Average Speed 30 | 50 50 48 47 42 45 31 32 25 23 23 24 24 24 36 32 37 52 47 32 33 45 21 19 17 20 27 27 36 35 22 27 Slowest Speed 275 | 50 50 50 110 50 120 31 37 35 23 24 24 27 24 275 32 50 100 100 32 35 98 26 26 17 29 29 32 50 50 25 50 Overloaded Moves 28 | . . . . . . . . . . . . . . . . . . . . . . . . . . 28 . . . . . Propulsion Burnouts . | . . . . . . . . . . . . . . . . . . . . . . . . . . . . . . . . Robots Hopped 63 | . . . . . 1 3 . 12 . . . . 2 7 2 . . 2 . . . . . . . 1 6 7 9 . 11 Cave-ins Triggered . | . . . . . . . . . . . . . . . . . . . . . . . . . . . . . . . . Teleports 2 | . . . . . . . . . . . . . . . . . . . . . . . . . . . . 1 . . 1 Spacefolds 22 | . . . . . . . . . . . . . . . . . . . . . . . . . . . . . . . 22 Exploration Rate (%) 39 | 3 32 22 24 30 43 9 45 26 50 51 71 47 9 68 49 65 20 16 39 47 61 33 20 57 53 48 61 21 10 38 80 Regions Visited 31 Branch Regions 18 Pre-discovered Areas 8 | . . . . . . . . . 1 . 1 . . . . . . . 1 . 3 . . . 2 . . . . . . Known Exits Taken 10 | . . . 1 . . 1 . 1 . . . . 1 . . . 1 1 . . . 1 1 . . . 1 . 1 . . Unknown Exits Taken 19 | 1 1 1 . . 1 . . . 1 1 1 1 . 1 1 1 . . 1 1 1 . . 1 1 1 . 1 . 1 . Scrap Searched 11 | . . . . . . . . . 3 1 . 1 . . . . . . 2 2 . 1 . . 1 . . . . . . Spaces Dug 155 | . . . . 7 4 3 51 5 . . . . . . . . 2 1 . . . . 25 . 2 . 53 2 . . . Terrain Destroyed 459 | . . . . 7 33 3 98 5 . . . . . . . . 2 24 . 31 . 42 81 . 2 . 121 10 . . . Melee 83 | . . . . 7 4 3 32 5 . . . . . . . . 2 1 . . . . 25 . 2 . . 2 . . . Projectile . | . . . . . . . . . . . . . . . . . . . . . . . . . . . . . . . . AOE 376 | . . . . . 29 . 66 . . . . . . . . . . 23 . 31 . 42 56 . . . 121 8 . . . Terrain Rammed . | . . . . . . . . . . . . . . . . . . . . . . . . . . . . . . . . Walls Destroyed . | . . . . . . . . . . . . . . . . . . . . . . . . . . . . . . . . Machines Disabled . | . . . . . . . . . . . . . . . . . . . . . . . . . . . . . . . . Actions | -11 -10 -9 -8 -8 -8 -7 -7 -7 -7 -7 -7 -6 -6 -6 -6 -6 -6 -5 -5 -5 -5 -4 -4 -4 -4 -4 -3 -3 -2 -2 -2 --------- Run | Jun Mat Mat Mat Gar Mat Fac Gar Fac Low Low Dat Pro Fac Ext Cet Arc Hub Fac Upp Upp Zhi Pro Fac Upp Upp War Pro Res Res Tes Sec Total 13641 | 22 98 124 172 183 394 306 1592 978 349 285 77 332 250 653 85 233 93 462 231 280 218 204 545 341 308 390 484 487 1704 268 1493 Wait 2258 | . . 13 . . . . 727 49 . 41 . 9 3 51 7 148 . . . . 25 . . . . . . . 1007 1 177 Move 10603 | 22 94 103 156 152 357 288 742 857 347 241 77 307 241 483 77 70 90 446 230 274 166 196 487 339 305 343 466 454 657 256 1280 Hop 53 | . . . . . 1 3 . 8 . . . . 2 7 1 . . 2 . . . . . . . 1 5 7 6 . 10 Pick Up 35 | . 3 1 6 . 1 2 2 5 . . . 2 . 1 . 1 . 1 . . 2 . 1 . . . . . 4 . 3 Fast Attach 114 | . 1 3 2 2 10 2 3 15 1 . . 2 . 6 . 3 . 4 1 2 7 2 8 1 . 4 1 5 22 . 7 Attach 52 | . . 1 2 . 2 5 4 1 . . . 3 . 2 . 1 1 4 . 1 4 2 6 1 . . 2 3 1 1 5 Detach 30 | . . 1 1 . 2 2 2 1 . . . 1 . 1 . . . 3 . 1 3 2 5 . . . 3 2 . . . Swap 10 | . . . . . 1 . 3 1 . 2 . 1 . . . . . . . . . . 1 . . . . . 1 . . Drop 54 | . . . 5 1 5 1 2 9 1 1 . 2 . 4 . 2 . . . . 2 . 3 . 1 3 . 3 6 . 3 Fire 34 | . . 2 . . 2 . 7 . . . . . . . . . . 1 . 2 . 2 4 . . . 7 6 . . 1 Melee 185 | . . . . 13 8 3 62 14 . . . 5 4 17 . 8 2 1 . . 9 . 30 . 2 4 . 2 . . 1 Ram 10 | . . . . . 5 . . . . . . . . . . . . . . . . . . . . . . 5 . . . Kick . | . . . . . . . . . . . . . . . . . . . . . . . . . . . . . . . . Crush . | . . . . . . . . . . . . . . . . . . . . . . . . . . . . . . . . Escape Stasis 136 | . . . . 15 . . 38 18 . . . . . 49 . . . . . . . . . . . . . . . 10 6 Rewire 67 | . . . . . . . . . . . . . . 32 . . . . . . . . . . . 35 . . . . . Trap . | . . . . . . . . . . . . . . . . . . . . . . . . . . . . . . . . Miscellaneous . | . . . . . . . . . . . . . . . . . . . . . . . . . . . . . . . . Route ------- -11/Junkyard -10/Materials (discovered 2 exits: [*Mat] / [*Min]) -9/Materials (discovered 2 exits: *Mat / [*Min]) -8/Materials (discovered 2 exits: *Fac / Gar) -8/Garrison -8/Materials -7/Factory (discovered 2 exits: *Low / Gar) -7/Garrison -7/Factory (discovered 2 exits: *Low x2) -7/Lower Caves -7/Lower Caves -7/Data Miner -6/Proximity Caves -6/Factory (discovered 2 exits: Fac / *Ext) -6/Extension (discovered 2 exits: *Fac / [*Cet]) -6/Cetus -6/Archives -6/Hub_04(d) (discovered 4 exits: *Fac x4) -5/Factory (discovered 3 exits: *Fac / *Upp x2) -5/Upper Caves -5/Upper Caves (discovered 2 exits: Fac / *Zhi) -5/Zhirov -4/Proximity Caves -4/Factory (discovered 3 exits: *Res x2 / *Upp) -4/Upper Caves -4/Upper Caves -4/Warlord -3/Proximity Caves -3/Research -2/Research (discovered 2 exits: *Tes x2) -2/Testing (discovered 2 exits: Acc / *Sec) -2/Section 7 (discovered 1 exit: *Acc) History --------- Turn | Location | Event 3 | -11/Junkyard | Discovered new exit (range 14) 13 | -11/Junkyard | Entered Materials 37 | -10/Materials | Discovered new exit (range 10) 50 | -10/Materials | Discovered new exit (range 17) 65 | -10/Materials | Entered another Materials area 65 | -9/Materials | Evolved 2 slots: Propulsion x1, Utility x1 115 | -9/Materials | Discovered new exit (range 6) 134 | -9/Materials | Discovered new exit (range 12) 140 | -9/Materials | Entered another Materials area 140 | -8/Materials | Evolved 2 slots: Propulsion x1, Utility x1 216 | -8/Materials | Discovered new exit (range 18) 228 | -8/Materials | Identified exit to Garrison 229 | -8/Materials | Entered Garrison 252 | -8/Garrison | Lost 3 parts (3n) 335 | -8/Garrison | Discovered new exit (range 13) 337 | -8/Garrison | Build established: Mutant 342 | -8/Garrison | Triggered checkpoint 349 | -8/Garrison | Entered Materials 458 | -8/Materials | Core integrity fell below 50% 509 | -8/Materials | Discovered new exit (range 13) 570 | -8/Materials | Entered Factory 570 | -7/Factory | Evolved 2 slots: Propulsion x1, Utility x1 667 | -7/Factory | Discovered new exit (range 14) 680 | -7/Factory | Identified exit to Garrison 681 | -7/Factory | Entered Garrison 753 | -7/Garrison | Garrison Relay disabled 796 | -7/Garrison | Triggered checkpoint 842 | -7/Garrison | Triggered checkpoint 858 | -7/Garrison | Build established: Sprinter 1038 | -7/Garrison | Discovered new exit (range 12) 1049 | -7/Garrison | Lost 6 parts (3n1u2w) 1125 | -7/Garrison | Garrison Relay disabled 1126 | -7/Garrison | Lost 3 parts (2n1u) 1391 | -7/Garrison | Build established: Mutant 1894 | -7/Garrison | Entered Factory 2071 | -7/Factory | Identified exit to Lower Caves 2263 | -7/Factory | Entered Lower Caves 2269 | -7/Lower Caves | Met a Warlord Commander 2270 | -7/Lower Caves | Learned location of Warlord (-4) 2272 | -7/Lower Caves | Found Encrypted Comm Array 2289 | -7/Lower Caves | Learned location of 1 exit from Factory 2293 | -7/Lower Caves | Build established: Sprinter 2314 | -7/Lower Caves | Encountered a Warlord checkpoint 2320 | -7/Lower Caves | Learned Factory terminal intel 2342 | -7/Lower Caves | Discovered new exit (range 13) 2345 | -7/Lower Caves | Entered another Lower Caves area 2440 | -7/Lower Caves | Discovered new exit (range 10) 2447 | -7/Lower Caves | Entered Data Miner 2447 | -7/Data Miner | Discovered new exit (range 6) 2452 | -7/Data Miner | Met Data Miner 2456 | -7/Data Miner | Learned location of Section 7 (-2) 2456 | -7/Data Miner | Acquired the access code to Warlord's prototype stash 2460 | -7/Data Miner | Received God Mode back door access code from Data Miner 2466 | -7/Data Miner | Entered Proximity Caves 2477 | -6/Proximity Caves | Core integrity fell below 50% 2478 | -6/Proximity Caves | Escorted by Enhanced Grunt 2511 | -6/Proximity Caves | Lost 3 parts (3n) 2518 | -6/Proximity Caves | Learned Factory terminal intel 2533 | -6/Proximity Caves | Learned location of 1 exit from Factory 2535 | -6/Proximity Caves | Attracted the attention of an 0b10 checkpoint 2572 | -6/Proximity Caves | Discovered new exit (range 4) 2575 | -6/Proximity Caves | Entered Factory 2575 | -6/Factory | Evolved 2 slots: Propulsion x1, Utility x1 2576 | -6/Factory | Identified exit to Extension 2576 | -6/Factory | Identified exit to Factory 2577 | -6/Factory | Loaded intel: 28 terminal locations 2600 | -6/Factory | Joined by Warlord Muscle squad 2649 | -6/Factory | Entered Extension 2662 | -6/Extension | Rescued a captive Derelict 2663 | -6/Extension | Rescued a captive Derelict 2665 | -6/Extension | Rescued a captive Derelict 2675 | -6/Extension | Rescued a captive Derelict 2677 | -6/Extension | Rescued a captive Derelict 2693 | -6/Extension | Rescued a captive Derelict 2693 | -6/Extension | Rescued a captive Derelict 2703 | -6/Extension | Spotted B-75 Beast 2705 | -6/Extension | Spotted B-75 Beast 2740 | -6/Extension | Lost 3 parts (2n1u) 2751 | -6/Extension | Rescued A7 2808 | -6/Extension | Lost 5 parts (5n) 2945 | -6/Extension | Rescued a captive Derelict 2952 | -6/Extension | Rescued a captive Derelict 2952 | -6/Extension | Rescued a captive Derelict 2985 | -6/Extension | Discovered exit to Factory (range 10) 2986 | -6/Extension | Discovered new exit (range 6) 2999 | -6/Extension | First assault squad dispatched 3018 | -6/Extension | Destroyed A7 3020 | -6/Extension | Disrupted transfer network 3022 | -6/Extension | Extracted ID and sensor layout for unrecognized location from A7's data core 3025 | -6/Extension | Entered Cetus 3025 | -6/Cetus | Accompanied by 1 ally 3030 | -6/Cetus | Spotted Cetus Guard 3031 | -6/Cetus | Spotted Cetus Guard 3031 | -6/Cetus | Spotted Cetus Guard 3031 | -6/Cetus | Spotted Cetus Guard 3053 | -6/Cetus | Discovered new exit (range 16) 3058 | -6/Cetus | Entered Archives 3078 | -6/Archives | Unable to access archive contents 3249 | -6/Archives | Core integrity fell below 50% 3252 | -6/Archives | Discovered new exit (range 15) 3255 | -6/Archives | Core integrity fell below 20% 3260 | -6/Archives | Entered Hub_04(d) 3313 | -6/Hub_04(d) | Entered Factory 3313 | -5/Factory | Evolved 2 slots: Power x1, Utility x1 3314 | -5/Factory | Loaded intel: 25 terminal locations 3444 | -5/Factory | Identified exit to Upper Caves 3485 | -5/Factory | Discovered new exit (range 10) 3544 | -5/Factory | Entered Upper Caves 3562 | -5/Upper Caves | Attracted the attention of an 0b10 checkpoint 3569 | -5/Upper Caves | Learned 4 Factory zone layouts 3612 | -5/Upper Caves | Learned location of Armory (-3) 3617 | -5/Upper Caves | Discovered new exit (range 8) 3620 | -5/Upper Caves | Entered another Upper Caves area 3638 | -5/Upper Caves | Identified exit to Factory 3718 | -5/Upper Caves | Discovered new exit (range 5) 3721 | -5/Upper Caves | Entered Zhirov 3721 | -5/Zhirov | Discovered new exit (range 4) 3728 | -5/Zhirov | Met Zhirov 3734 | -5/Zhirov | Learned location of Quarantine (-3) 3734 | -5/Zhirov | Learned location of Testing (-2) 3734 | -5/Zhirov | Learned location of Command (-1) 3739 | -5/Zhirov | Zhirov requested help retrieving the SGEMP Prototype 3744 | -5/Zhirov | Found Alien Artifact 3744 | -5/Zhirov | Identified Integrated Dissipator 3744 | -5/Zhirov | Installed Integrated Dissipator, increased core heat dissipation (+20) 3750 | -5/Zhirov | Found Alien Artifact 3865 | -5/Zhirov | Entered Proximity Caves 3892 | -4/Proximity Caves | Attracted the attention of an 0b10 checkpoint 3917 | -4/Proximity Caves | Discovered exit to Factory (range 5) 3917 | -4/Proximity Caves | Entered Factory 3917 | -4/Factory | Evolved 2 slots: Propulsion x1, Utility x1 3918 | -4/Factory | Identified exit to Upper Caves 3919 | -4/Factory | Identified exit to Research 3954 | -4/Factory | Found Prototype Launcher 3954 | -4/Factory | Identified Tesla Bomb Launcher 4011 | -4/Factory | Discovered exit to Research (range 15) 4118 | -4/Factory | Entered Upper Caves 4126 | -4/Upper Caves | Learned Research terminal intel 4133 | -4/Upper Caves | Learned Research interactive machine intel 4157 | -4/Upper Caves | Attracted the attention of an 0b10 checkpoint 4175 | -4/Upper Caves | Spotted B-86 Titan 4178 | -4/Upper Caves | Discovered new exit (range 4) 4179 | -4/Upper Caves | Entered another Upper Caves area 4181 | -4/Upper Caves | Attracted the attention of an 0b10 checkpoint 4213 | -4/Upper Caves | Spotted B-86 Titan 4237 | -4/Upper Caves | Build established: Hacker-Sprinter 4245 | -4/Upper Caves | Discovered new exit (range 7) 4247 | -4/Upper Caves | Lost 4 parts (4n) 4248 | -4/Upper Caves | Entered Warlord 4258 | -4/Warlord | System corruption cleaned by Quarantine Array 4353 | -4/Warlord | Met Warlord 4356 | -4/Warlord | Opened Warlord's prototype stash 4361 | -4/Warlord | Found Prototype Processor 4361 | -4/Warlord | Identified Exp. Target Analyzer 4364 | -4/Warlord | Found Prototype Device 4364 | -4/Warlord | Identified Exp. Cloaking Device 4378 | -4/Warlord | Warlord's base attacked by MAIN.C 4394 | -4/Warlord | Discovered new exit (range 12) 4396 | -4/Warlord | Entered Proximity Caves 4545 | -3/Proximity Caves | Attracted the attention of an 0b10 checkpoint 4545 | -3/Proximity Caves | Discovered exit to Research (range 4) 4546 | -3/Proximity Caves | Entered Research 4546 | -3/Research | Evolved 2 slots: Weapon x2 4547 | -3/Research | Loaded intel: 45 interactive machine locations 4548 | -3/Research | Loaded intel: 23 terminal locations 4560 | -3/Research | Lost 4 parts (1p2n1u) 4583 | -3/Research | Incoming investigation squad redirected 4594 | -3/Research | Incoming investigation squad redirected 4646 | -3/Research | Discovered new exit (range 14) 4663 | -3/Research | Lost 5 parts (3n2u) 4721 | -3/Research | Core integrity fell below 50% 4728 | -3/Research | Identified Transdimensional Reconstructor 4728 | -3/Research | Warped through subspace 4740 | -3/Research | Core integrity fell below 20% 4752 | -3/Research | Lost 4 parts (1n3u) 4752 | -3/Research | Entered another Research area 4752 | -2/Research | Warlord forces began assault on 0b10 4752 | -2/Research | Evolved 2 slots: Propulsion x1, Utility x1 4753 | -2/Research | Identified exit to Testing 4773 | -2/Research | Found Prototype Device 4773 | -2/Research | Identified Exp. Thermal Shield 4789 | -2/Research | Discovered exit to Testing (range 16) 4810 | -2/Research | Met up with Warlord 4862 | -2/Research | Research machine network offline 5025 | -2/Research | Build established: Mutant 5109 | -2/Research | Borebot progress halted 5121 | -2/Research | Borebot progress halted 5342 | -2/Research | Borebot progress halted 5752 | -2/Research | Warlord invited to help at Command 5777 | -2/Research | Found Prototype Processor 5777 | -2/Research | Identified Exp. Core Analyzer 5896 | -2/Research | Spotted Executioner 5905 | -2/Research | Spotted Striker 5997 | -2/Research | Found Prototype Processor 5997 | -2/Research | Identified Exp. Melee Analysis Suite 6009 | -2/Research | Found Prototype Slashing Weapon 6009 | -2/Research | Identified Particle Cleaver 6040 | -2/Research | Entered Testing 6057 | -2/Testing | Identified exit to Access 6091 | -2/Testing | Spotted Fortress 6109 | -2/Testing | Discovered new exit (range 7) 6111 | -2/Testing | Entered Section 7 6143 | -2/Section 7 | Found Alien Artifact 6143 | -2/Section 7 | Identified Integrated Reactor 6143 | -2/Section 7 | Installed Integrated Reactor, increased core energy generation (+10) 6173 | -2/Section 7 | Spotted Alpha 7 6173 | -2/Section 7 | Spotted Alpha 7 6205 | -2/Section 7 | Build established: Scavenger-Sprinter 6206 | -2/Section 7 | Spotted S7 Guard 6222 | -2/Section 7 | Spotted Executioner 6222 | -2/Section 7 | Spotted Executioner 6232 | -2/Section 7 | Lost 5 parts (1p2n1u1w) 6243 | -2/Section 7 | Spotted Striker 6243 | -2/Section 7 | Spotted Striker 6259 | -2/Section 7 | Spotted B-99 Colossus 6275 | -2/Section 7 | Found Transdimensional Reconstructor 6277 | -2/Section 7 | Found Transdimensional Reconstructor 6347 | -2/Section 7 | Spotted S7 Guard 6357 | -2/Section 7 | Spotted S7 Guard 6361 | -2/Section 7 | Search patrols dispatched 6371 | -2/Section 7 | Spotted B-90 Cyclops 6417 | -2/Section 7 | Scanned by Researcher 6418 | -2/Section 7 | Intercept squad dispatched 6421 | -2/Section 7 | Found Alien Artifact 6421 | -2/Section 7 | Identified Spacefold Activator 6422 | -2/Section 7 | Warped through subspace 6442 | -2/Section 7 | Found Alien Artifact 6442 | -2/Section 7 | Identified Integrated Thermoelectric Network 6442 | -2/Section 7 | Installed Integrated Thermoelectric Network, gained heat-energy exchange potential 6459 | -2/Section 7 | Intercept squad dispatched 6466 | -2/Section 7 | Spotted Tracker 6466 | -2/Section 7 | Spotted Tracker 6467 | -2/Section 7 | Spotted Tracker 6473 | -2/Section 7 | Found Alien Artifact 6473 | -2/Section 7 | Identified Integrity Redistributor 6473 | -2/Section 7 | Used Integrity Redistributor, redistributed integrity from core (-34) 6478 | -2/Section 7 | Spotted Combat Programmer 6479 | -2/Section 7 | Spotted Combat Programmer 6479 | -2/Section 7 | Spotted Combat Programmer 6485 | -2/Section 7 | Spotted S7 Guard 6501 | -2/Section 7 | Lost 3 parts (1n1u1w) 6526 | -2/Section 7 | Core integrity fell below 50% 6532 | -2/Section 7 | Found Alien Artifact 6532 | -2/Section 7 | Identified Core Regenerator 6532 | -2/Section 7 | Used Core Regenerator, restored core integrity (+362) 6611 | -2/Section 7 | Search patrols dispatched 6673 | -2/Section 7 | Core integrity fell below 20% 6677 | -2/Section 7 | Found Alien Artifact 6677 | -2/Section 7 | Identified Core Membrane 6677 | -2/Section 7 | Installed Core Membrane, gained immunity to corruption 6687 | -2/Section 7 | Core destroyed Last Messages --------------- 06666_ Combat Programmer resets Tracker, system corruption cleaned. 06666_ Combat Programmer resets Combat Programmer, system corruption cleaned. 06666_ Spacefolded through Wall. 06667_ Slug penetrates Wall. 06669_ Impulse Thruster Array destroyed. 06669_ C-65 Expert Imp. Antigrav System temporarily disabled. 06671_ Slug penetrates Wall. 06671_ Spacefolded through Wall. 06676_ Spacefolded through Suspension Chamber. 06677_ Acquired Alien Artifact. 06677_ Identified Core Membrane. 06677_ Core Membrane installed, core corruption filter active. 06686_ Spacefolded through Suspension Chamber. 06686_ Penetrated by EMDS Slug. 06686_ Core Membrane filtered system corruption (4). 06686_ EMDS Slug penetrates Wall. 06686_ EMDS Slug penetrates Combat Programmer. 06687_ Slug penetrates Wall. 06687_ Spacefolded through Wall. Map ----- +----------------------------------------------------+ | #?##+##?????????# ##+##### #######+# | | #########?? ??????????+ #???# | | ???????????"" ??????????# #########????# | | ??????????""" ?????????# #?????????#### | | ??????????""" ?????????# """ #?????????# | | ????????? #????????# """ #?????????# | | ????????? #????????# """ #??????#### | | ????????########????????+ #??????+ | | ????????????????????????# #??????# ##### | | ????????????????????????# ##+##### #???# | | ????????????????????????# "" #???# | | ????????????????????????# """ ##+##+##### | | ????????????????????????# "T # ## | | ??????????????????#+##+## """ # """ ## | | ??????????????????# "" # """ ## | | ??????????????????# # """ ## | | ??????????? + ## | | ????????????# #################### ! """ ## | | ???????????????????????????????????# """ ## | | ???????????????????????????????????# """ ## | | ???????????????????????????????????# ## | | ????????????????????????##################+### | | ??????????????????????### != | | ??????????????????????#BB != | | ??????????????????????#BB = """" | | ?????????????????#######;@ """"" ""R"" | | ???????########??#" # """""" "" "" | | ???????# #??#"" # """""" | | ???????# [ #??#""" # " """ | | ???????# #??#"""" / * | | ???????# #??#"" " #h | | ???????# #??#"""" #g | | ???????# #??#""" #h | | ???????####/###??######## ####+############ | | ??????????# #???????????# # #??????# | | ??????????# #############Y # ######## | | #######???# ##"""""""""##Y + # | | ???# ##" "" """"## # "" + | | ??# ##" """ ## # " # | | """ """??# ##" %## # " """ # | | " " " " ?# ## "#Y # """ " ## ######+ | | """ """ ?# ## ##h # """"" ## #??? | | # #########/### # ## #??# | | """ """ # ########### #??# | | " " " " + #??????####+#+#### "" | | """ """ # #??????# ## "" | | # #??????# ## "" | | """ """ ?#### #####"T### #??????# """ ## | | " " " " ????# #???#""#?# #??????# "!" ## | | """ """?????# #???####?# ^ #??????# """ ## !! | +----------------------------------------------------+ Best States ------------- Heat Dissipation 69 Energy Generation 49 Energy Capacity 900 Matter Stores 300 Matter Capacity 300 Sight Range 23 Terrain Scan Density 10 Jamming Range 12 Armor Coverage 150 Utility Shielding 90 Phase Shifting 15 Evasion (%) 80 Melee Accuracy 12 Core Analysis 11 Armor Integrity Analysis 40 Offensive Hacking 28 Defensive Hacking 35 Item Schematics ----------------- Combat Drone Bay | -7/Data Miner | Free Lgt. Regenerative Plating | -7/Data Miner | Free Cld. Cesium-ion Thruster | -7/Data Miner | Free Gravity Neutralizer | -7/Data Miner | Free Shock Maul | -7/Data Miner | Free Cmb. Gravmag System | -7/Data Miner | Free Adv. System Shield | -7/Data Miner | Free Mass Driver | -7/Data Miner | Free Enh. Optical Array | -7/Data Miner | Free Adv. Trap Extractor | -7/Data Miner | Free Remote Force Field | -7/Data Miner | Free Adv. Transmission Jammer | -7/Data Miner | Free Robot Schematics ------------------ M-22 Extractor | -7/Data Miner | Free L-41 Fighter | -7/Data Miner | Free G-47 Trooper | -7/Data Miner | Free P-60 Hacker | -7/Data Miner | Free R-10 Processor | -7/Data Miner | Free Fabricated ------------ Nothing Alien Tech Used ----------------- Integrated Dissipator Transdimensional Reconstructor Integrated Reactor Spacefold Activator Integrated Thermoelectric Network Integrity Redistributor Core Regenerator Core Membrane Achievements -------------- None Challenges ------------ None Game ------ Seed MatterPlasmaCannon Manual? 0 Play Time 01:36:22 Cumulative 246.1 hours Start 2023.05.28 @ 09:21:26 End 2023.05.28 @ 11:03:38 Sessions 1 Manual Loads 0 Difficulty Rogue Special Mode None Game No. 731 Rogue 731 Adventurer 0 Explorer 0 Win Type - Total 12 Types 8/0/2/2/0/0/0/0/0 Lore% 87 Gallery% 83 Achievement% 74 Wizard Run 0 Options --------- ASCII 0 Keyboard 0 Movement Mouse Keybinds 0 Fullscreen 1 Font 16/SmallcapsGlow Map View 75x55 Tactical HUD 1 Map Filters NONE Filters NONE Steam 1 RUN: ff0f362b-c694-4bf6-8aed-d4b6796c8a71